bitfinex/quotes_SOLUSD_20220228
["timestamp","ask_amount","ask_price","bid_price","bid_amount"]
[1646049370067,22.5005,90.82,90.703,116.7]
[1646049370271,22.5005,90.82,90.704,2.2879231]
[1646049370470,23.7769,90.829,90.711,110.7]
[1646049370675,23.7769,90.829,90.731,110.7]
[1646049370870,23.7769,90.829,90.74,15.87]
[1646049371269,23.7769,90.829,90.741,6.0]
[1646049371270,1.55534172,90.828,90.741,6.0]
[1646049371470,110.7,90.827,90.741,6.0]
[1646049371675,1.78667847,90.826,90.741,6.0]
[1646049371872,1.78667847,90.826,90.733,6.0]
[1646049372069,66.45,90.825,90.72,16.7836]
[1646049372271,1.54384043,90.824,90.72,16.7836]
[1646049372472,1.54384043,90.824,90.721,2.74678921]
[1646049372671,1.54384043,90.824,90.722,6.0]
[1646049372873,1.54384043,90.824,90.723,43.0938636]
[1646049373071,1.54384043,90.824,90.724,6.0]
[1646049373270,1.54384043,90.824,90.724,8.74678921]
[1646049373470,1.54384043,90.824,90.725,6.0]
[1646049373671,1.54384043,90.824,90.725,8.74678921]
[1646049373871,4.406,90.823,90.726,2.74678921]
[1646049374073,1.54384043,90.824,90.727,6.0]
[1646049374475,1.54384043,90.824,90.728,2.74678921]
[1646049374676,1.54384043,90.824,90.729,6.0]
[1646049375078,1.54384043,90.824,90.73,2.74678921]
[1646049376990,4.406,90.823,90.73,2.74678921]
[1646049377689,1.54384043,90.824,90.73,2.74678921]
[1646049377891,110.7,90.817,90.73,2.74678921]
[1646049378094,110.7,90.804,90.72,2.74678921]
[1646049378291,110.7,90.804,90.676,23.3571]
[1646049378292,177.15,90.796,90.697,2.74678921]
[1646049378590,1.61717586,90.795,90.697,2.74678921]
[1646049378791,1.61717586,90.795,90.698,50.87731791]
[1646049379193,1.53559966,90.792,90.699,2.74678921]
[1646049379391,1.50678124,90.79,90.699,2.74678921]
[1646049379591,1.5161354,90.788,90.699,2.74678921]
[1646049379794,1.36442494,90.785,90.699,2.74678921]
[1646049382194,1.36442494,90.785,90.7,4.408]
[1646049382392,1.36442494,90.785,90.71,15.87]
[1646049382795,1.36442494,90.785,90.711,4.407]
[1646049382994,1.36442494,90.785,90.712,55.96816277]
[1646049383195,1.36442494,90.785,90.713,4.407]
[1646049383593,1.36442494,90.785,90.714,2.74678921]
[1646049386201,1.36442494,90.785,90.714,19.40798921]
[1646049386602,1.36442494,90.785,90.715,2.74678921]
[1646049386802,1.36442494,90.785,90.72,15.87]
[1646049388505,24.6157,90.787,90.721,2.74678921]
[1646049389402,23.2906,90.794,90.722,32.14352953]
[1646049389603,23.2906,90.794,90.722,36.55052953]
[1646049389804,23.2906,90.794,90.723,2.74678921]
[1646049390004,23.2906,90.794,90.724,6.0]
[1646049390205,112.6,90.82,90.724,6.0]
[1646049390405,24.89595768,90.819,90.725,2.74678921]
[1646049390605,1.83269234,90.818,90.726,59.18266044]
[1646049391007,1.83269234,90.818,90.73,15.87]
[1646049391406,1.39380931,90.817,90.731,2.74678921]
[1646049392507,23.2882,90.819,90.731,2.74678921]
[1646049392707,23.2882,90.819,90.732,142.84352953]
[1646049392907,23.2882,90.819,90.733,4.406]
[1646049393107,23.2882,90.819,90.734,6.0]
[1646049393307,23.2882,90.819,90.734,34.89031874]
[1646049393709,23.2882,90.819,90.735,28.89031874]
[1646049393909,23.2882,90.819,90.736,6.0]
[1646049394108,23.2882,90.819,90.74,15.87]
[1646049394311,23.2882,90.819,90.741,49.36475023]
[1646049394708,23.2882,90.819,90.742,2.74678921]
[1646049394908,23.2882,90.819,90.743,6.0]
[1646049395309,23.2882,90.819,90.744,2.74678921]
[1646049395508,23.2882,90.819,90.745,6.0]
[1646049395908,23.2882,90.819,90.746,2.74678921]
[1646049401712,23.2882,90.819,90.75,14.70138475]
[1646049402113,23.2882,90.819,90.751,8.74678921]
[1646049402514,23.2882,90.819,90.752,2.74678921]
[1646049402715,23.2882,90.819,90.753,6.0]
[1646049403113,23.2882,90.819,90.754,8.74678921]
[1646049403314,23.2882,90.819,90.755,56.52143084]
[1646049403516,23.2882,90.819,90.755,59.26822005]
[1646049403719,23.2882,90.819,90.756,8.74678921]
[1646049403916,23.2882,90.819,90.77,15.87]
[1646049404117,23.2882,90.819,90.771,52.59470897]
[1646049407619,23.3815,90.831,90.771,52.59470897]
[1646049407819,23.3815,90.831,90.772,2.74678921]
[1646049408020,23.3815,90.831,90.773,6.0]
[1646049408219,23.3815,90.831,90.772,2.74678921]
[1646049408421,23.3815,90.831,90.774,2.74678921]
[1646049408622,22.8413,90.844,90.774,2.74678921]
[1646049408826,22.8413,90.844,90.776,110.7]
[1646049409021,22.8413,90.844,90.79,15.87]
[1646049409220,22.8413,90.844,90.791,53.4984615]
[1646049409421,22.8413,90.844,90.792,6.0]
[1646049409622,24.0336,90.874,90.792,116.7]
[1646049409823,23.0643,90.873,90.792,126.43678921]
[1646049410224,23.0643,90.873,90.793,2.74678921]
[1646049410423,24.48138308,90.873,90.794,6.0]
[1646049410847,24.48138308,90.873,90.795,2.74678921]
[1646049411250,112.6,90.863,90.78,15.87]
[1646049411453,23.7297,90.844,90.78,15.87]
[1646049411849,23.7297,90.844,90.781,2.74678921]
[1646049412050,29.5697,90.844,90.781,2.74678921]
[1646049415054,23.7297,90.844,90.781,2.74678921]
[1646049416056,23.7297,90.844,90.782,6.0]
[1646049416458,23.7297,90.844,90.783,2.74678921]
[1646049416658,23.7297,90.844,90.784,6.0]
[1646049417058,23.7297,90.844,90.785,2.74678921]
[1646049417259,61.1233124,90.845,90.786,6.0]
[1646049417457,61.1233124,90.845,90.79,15.87]
[1646049417657,61.1233124,90.845,90.791,6.0]
[1646049418058,23.0379,90.862,90.792,26.14352953]
[1646049418259,1.82384817,90.893,90.793,159.43661016]
[1646049418458,1.82384817,90.893,90.794,2.39366211]
[1646049418758,1.82384817,90.893,90.795,6.0]
[1646049418961,1.82384817,90.893,90.81,15.87]
[1646049419161,24.7719,90.873,90.81,15.87]
[1646049419359,112.20828469,90.872,90.81,15.87]
[1646049419559,117.71,90.872,90.793,16.1919]
[1646049419762,1.62520779,90.871,90.793,16.1919]
[1646049420160,1.54868748,90.871,90.793,16.1919]
[1646049420360,1.54868748,90.871,90.794,55.29360025]
[1646049422461,1.54868748,90.871,90.794,58.04038946]
[1646049423464,89.28236586,90.873,90.794,58.04038946]
[1646049423661,89.28236586,90.873,90.795,32.14352953]
[1646049423862,89.28236586,90.873,90.81,15.87]
[1646049424065,89.28236586,90.873,90.811,50.87969936]
[1646049424464,89.28236586,90.873,90.811,53.62648857]
[1646049424866,89.28236586,90.873,90.812,2.74678921]
[1646049425066,89.28236586,90.873,90.812,8.74678921]
[1646049425266,64.51046586,90.873,90.813,110.7]
[1646049425468,64.51046586,90.873,90.814,6.0]
[1646049425865,188.9,90.965,90.815,287.15]
[1646049426068,0.47619048,104.14,90.815,287.15]
[1646049426069,49.8168,90.989,90.881,60.40295502]
[1646049426266,112.13586979,90.988,90.882,22.9]
[1646049426568,1.49067846,90.987,90.882,22.9]
[1646049426766,110.7,90.984,90.882,22.9]
[1646049427067,177.15,90.956,90.882,22.9]
[1646049427266,110.7,90.954,90.882,22.9]
[1646049427465,1.86655663,90.953,90.882,22.9]
[1646049427865,110.7,90.948,90.882,22.9]
[1646049428066,177.15,90.936,90.882,22.9]
[1646049428265,110.7,90.934,90.882,22.9]
[1646049428466,1.65189358,90.933,90.882,22.9]
[1646049428666,134.0427,90.935,90.882,22.9]
[1646049429068,1.50088178,90.934,90.882,22.9]
[1646049430271,134.0427,90.935,90.882,22.9]
[1646049430472,1.46194551,90.934,90.882,22.9]
[1646049431574,112.16194551,90.934,90.88,23.25071296]
[1646049431772,117.77194551,90.934,90.88,23.25071296]
[1646049431973,7.07194551,90.934,90.88,23.25071296]
[1646049432172,7.07194551,90.934,90.855,16.4819]
[1646049432473,5.61,90.934,90.851,3.09053331]
[1646049432672,24.0813,90.933,90.852,8.86576122]
[1646049433072,24.0813,90.933,90.853,34.35902872]
[1646049433271,24.0813,90.933,90.854,6.0]
[1646049433471,24.0813,90.933,90.854,2.74678921]
[1646049433472,178.90047104,90.932,90.854,2.74678921]
[1646049433672,1.63784266,90.931,90.851,46.9614982]
[1646049435672,24.0813,90.933,90.852,5.48536782]
[1646049435873,24.0813,90.933,90.853,6.0]
[1646049436074,24.0813,90.933,90.854,2.82651729]
[1646049436275,24.0813,90.933,90.855,6.0]
[1646049436474,24.0813,90.933,90.856,2.53071755]
[1646049436677,24.0813,90.933,90.857,6.0]
[1646049436896,24.0813,90.933,90.858,3.02765889]
[1646049437076,24.0813,90.933,90.859,6.0]
[1646049437273,24.0813,90.933,90.859,8.74678921]
[1646049437476,24.0813,90.933,90.86,2.85790882]
[1646049437675,24.0813,90.933,90.86,34.47014833]
[1646049437875,24.0813,90.933,90.862,2.99243]
[1646049438275,24.0813,90.933,90.863,31.61223951]
[1646049438474,24.0813,90.933,90.864,2.67609471]
[1646049438674,24.0813,90.933,90.865,48.66261548]
[1646049438875,24.0813,90.933,90.866,2.60212676]
[1646049439277,24.0813,90.933,90.866,34.21436627]
[1646049439474,24.0813,90.933,90.867,2.25686418]
[1646049439675,112.33707993,90.932,90.859,2.74678921]
[1646049439874,1.51708196,90.931,90.851,31.61223951]
[1646049440076,1.51708196,90.931,90.85,15.87]
[1646049440474,177.15,90.926,90.844,47.38486958]
[1646049440674,1.76412035,90.925,90.844,47.38486958]
[1646049440874,4.401,90.924,90.844,47.38486958]
[1646049441275,110.7,90.922,90.844,47.38486958]
[1646049441476,1.47805141,90.921,90.844,47.38486958]
[1646049442177,1.47805141,90.921,90.845,31.61223951]
[1646049442378,24.037,90.923,90.845,31.61223951]
[1646049442577,24.037,90.923,90.846,31.17985589]
[1646049442977,24.037,90.923,90.86,15.87]
[1646049443177,24.037,90.923,90.861,52.97209847]
[1646049443378,24.037,90.923,90.862,2.31612679]
[1646049443678,24.037,90.923,90.862,65.10822219]
[1646049443878,24.037,90.923,90.863,2.90525478]
[1646049444078,24.037,90.923,90.863,34.51749429]
[1646049444277,24.037,90.923,90.864,2.34827269]
[1646049444878,24.037,90.923,90.861,50.34498648]
[1646049445078,24.037,90.923,90.836,2.74678921]
[1646049445079,66.45,90.922,90.836,2.74678921]
[1646049445378,1.57325693,90.921,90.834,2.87845329]
[1646049445780,32.367,90.923,90.835,30.48652256]
[1646049445985,32.367,90.923,90.836,2.33384801]
[1646049445986,24.037,90.923,90.836,2.33384801]
[1646049446178,24.037,90.923,90.841,3.05692601]
[1646049446680,24.037,90.923,90.842,33.23331177]
[1646049446879,24.037,90.923,90.843,2.69997236]
[1646049447080,1.39189375,90.922,90.843,2.74678921]
[1646049448179,1.39189375,90.922,90.84,15.87]
[1646049449080,67.84189375,90.922,90.84,15.87]
[1646049449279,1.74820137,90.921,90.823,2.74678921]
[1646049449479,1.74820137,90.921,90.812,2.74678921]
[1646049449480,4.401,90.92,90.812,2.74678921]
[1646049449681,66.45,90.919,90.812,19.61598921]
[1646049449881,66.45,90.917,90.812,2.74678921]
[1646049450081,66.45,90.915,90.812,2.74678921]
[1646049450281,66.45,90.913,90.813,60.8887275]
[1646049450483,6.26389027,90.914,90.813,60.8887275]
[1646049450484,66.45,90.911,90.813,60.8887275]
[1646049450682,1.87375776,90.91,90.813,60.8887275]
[1646049450882,1.56363098,90.908,90.813,60.8887275]
[1646049451284,4.402,90.907,90.813,60.8887275]
[1646049451483,1.45805709,90.905,90.813,60.8887275]
[1646049451684,4.402,90.904,90.813,60.8887275]
[1646049451905,1.45805709,90.905,90.814,2.74678921]
[1646049452103,66.45,90.903,90.814,2.74678921]
[1646049452306,66.45,90.903,90.815,2.2631349]
[1646049452907,110.7,90.898,90.815,2.2631349]
[1646049453106,177.15,90.896,90.813,60.8887275]
[1646049453306,1.77307172,90.893,90.813,60.8887275]
[1646049453506,1.86965244,90.891,90.813,60.8887275]
[1646049455210,1.86965244,90.891,90.802,2.74678921]
[1646049455411,4.402,90.89,90.801,2.37693509]
[1646049455810,4.402,90.89,90.802,30.48652256]
[1646049456010,4.402,90.89,90.803,2.27831928]
[1646049456210,4.402,90.89,90.803,45.49970057]
[1646049456412,4.402,90.89,90.804,3.060282]
[1646049457013,4.402,90.89,90.804,33.54680456]
[1646049457415,4.402,90.89,90.805,2.40436896]
[1646049458914,177.15,90.89,90.805,2.40436896]
[1646049459315,4.402,90.891,90.806,2.74678921]
[1646049459516,110.7,90.903,90.806,33.23331177]
[1646049459716,110.7,90.903,90.81,15.87]
[1646049459918,110.7,90.903,90.811,2.73842705]
[1646049460116,110.7,90.903,90.811,33.22494961]
[1646049460315,110.7,90.903,90.812,33.29647692]
[1646049460517,110.7,90.903,90.813,2.28907029]
[1646049460716,110.7,90.903,90.813,32.77559285]
[1646049460919,110.7,90.903,90.814,2.97943171]
[1646049461117,110.7,90.903,90.814,5.72622092]
[1646049461318,110.7,90.903,90.815,2.74678921]
[1646049462422,110.7,90.903,90.817,61.83619607]
[1646049462618,110.7,90.903,90.82,15.87]
[1646049462819,110.7,90.903,90.821,2.67648912]
[1646049464520,24.6099,90.904,90.821,2.67648912]
[1646049464821,24.6099,90.904,90.823,2.28159806]
[1646049465023,24.6099,90.904,90.824,6.0]
[1646049465221,24.6099,90.904,90.825,2.54464425]
[1646049465421,24.6099,90.904,90.84,15.87]
[1646049465622,24.6099,90.904,90.841,54.3386182]
[1646049465825,24.6099,90.904,90.842,2.85793856]
[1646049466726,24.6099,90.904,90.843,2.74678921]
[1646049467125,177.15,90.936,90.843,2.74678921]
[1646049468126,110.7,90.936,90.843,2.74678921]
[1646049468329,110.7,90.936,90.844,2.78483132]
[1646049468525,2.74678921,90.94,90.844,2.78483132]
[1646049468725,2.74678921,90.94,90.845,2.74678921]
[1646049469126,2.74678921,90.94,90.846,2.43376951]
[1646049469325,2.74678921,90.94,90.86,15.87]
[1646049469526,2.74678921,90.94,90.861,63.59036513]
[1646049469727,2.74678921,90.94,90.862,2.32367534]
[1646049470129,24.3218,90.93,90.862,2.32367534]
[1646049470627,110.7,90.929,90.862,2.32367534]
[1646049470827,24.3218,90.93,90.862,2.32367534]
[1646049471227,24.3218,90.93,90.863,2.74678921]
[1646049471429,24.3218,90.93,90.863,5.03525659]
[1646049471627,24.3218,90.93,90.864,30.48652256]
[1646049471828,24.3218,90.93,90.865,2.3111946]
[1646049472026,24.3218,90.93,90.865,8.3111946]
[1646049472228,24.3218,90.93,90.865,11.05798381]
[1646049472428,24.3218,90.93,90.866,2.74678921]
[1646049472631,24.3218,90.93,90.881,57.04318695]
[1646049472828,24.3218,90.93,90.882,2.71822021]
[1646049474532,24.3218,90.93,90.882,5.46500942]
[1646049474934,24.3218,90.93,90.883,4.4]
[1646049475135,24.3218,90.93,90.883,7.39504026]
[1646049475332,24.806,90.945,90.883,7.39504026]
[1646049475534,22.5813,90.944,90.883,7.39504026]
[1646049476232,22.5813,90.944,90.882,19.28358921]
[1646049476233,110.7,90.943,90.882,4.399]
[1646049476432,110.7,90.943,90.88,15.87]
[1646049476633,110.7,90.943,90.874,16.2796]
[1646049476833,110.7,90.943,90.86,15.87]
[1646049476834,110.7,90.943,90.875,2.42048118]
[1646049477033,110.7,90.943,90.861,2.32645319]
[1646049477235,110.7,90.939,90.862,43.37818732]
[1646049477434,110.7,90.935,90.862,43.37818732]
[1646049478835,1.84074426,90.942,90.862,43.37818732]
[1646049479035,1.84074426,90.942,90.848,2.51845298]
[1646049479036,110.7,90.935,90.863,2.93034504]
[1646049479235,4.4,90.934,90.846,3.04711784]
[1646049479435,110.7,90.933,90.846,3.04711784]
[1646049479637,4.4,90.932,90.846,3.04711784]
[1646049479837,110.7,90.931,90.846,3.04711784]
[1646049480037,113.44678921,90.931,90.847,52.36301703]
[1646049480240,2.74678921,90.931,90.848,3.11179394]
[1646049480538,110.7,90.931,90.849,30.48652256]
[1646049480738,24.8336,90.932,90.85,3.0042668]
[1646049481140,24.8336,90.932,90.851,2.4391274]
[1646049482339,28.4018,90.987,90.854,2.6501384]
[1646049482539,110.7,90.977,90.857,2.64545478]
[1646049482743,110.7,90.977,90.871,53.59485384]
[1646049482941,110.7,90.977,90.872,9.1056536]
[1646049483142,110.7,90.977,90.873,4.399]
[1646049483343,110.7,90.977,90.874,116.7]
[1646049483642,46.7863,90.978,90.875,7.00432049]
[1646049483842,46.7863,90.978,90.891,58.01627779]
[1646049484044,46.7863,90.978,90.892,3.00784654]
[1646049484245,110.7,90.977,90.892,3.00784654]
[1646049484443,46.7863,90.978,90.892,3.00784654]
[1646049485445,46.7863,90.978,90.892,113.70784654]
[1646049485661,46.7863,90.978,90.894,110.7]
[1646049485863,46.7863,90.978,90.895,8.73767622]
[1646049487064,46.7863,90.978,90.895,2.73767622]
[1646049488266,46.7863,90.978,90.895,33.22419878]
[1646049488466,46.7863,90.978,90.896,2.92053068]
[1646049488667,177.15,90.976,90.896,2.92053068]
[1646049488868,183.94,90.976,90.896,2.92053068]
[1646049489067,4.398,90.975,90.896,2.92053068]
[1646049489268,110.7,90.974,90.896,2.92053068]
[1646049489467,4.398,90.973,90.896,2.92053068]
[1646049489668,110.7,90.972,90.896,2.92053068]
[1646049490867,110.7,90.975,90.896,2.92053068]
[1646049491269,115.098,90.975,90.896,2.92053068]
[1646049491470,110.7,90.975,90.896,2.92053068]
[1646049491969,115.098,90.975,90.896,2.92053068]
[1646049492369,110.7,90.974,90.897,30.48652256]
[1646049492569,4.398,90.975,90.897,30.48652256]
[1646049492570,46.7863,90.978,90.9,15.87]
[1646049492871,46.7863,90.978,90.901,2.29795518]
[1646049494769,110.7,90.977,90.901,2.29795518]
[1646049499473,110.7,90.975,90.901,2.29795518]
[1646049500875,66.45,90.97,90.901,0.00795518]
[1646049501074,177.15,90.959,90.858,16.5397]
[1646049501273,177.15,90.957,90.858,16.5397]
[1646049501473,177.15,90.955,90.858,16.5397]
[1646049501674,177.15,90.949,90.858,16.5397]
[1646049501875,177.15,90.947,90.876,42.86982523]
[1646049502075,177.15,90.945,90.876,42.86982523]
[1646049502276,177.15,90.943,90.876,42.86982523]
[1646049502475,177.15,90.941,90.876,42.86982523]
[1646049502677,177.15,90.939,90.876,42.86982523]
[1646049502879,177.15,90.937,90.876,42.86982523]
[1646049503077,110.7,90.935,90.876,42.86982523]
[1646049503280,66.45,90.93,90.83,15.87]
[1646049503478,66.45,90.92,90.82,15.87]
[1646049503679,66.45,90.908,90.82,15.87]
[1646049503878,1.70017758,90.904,90.82,15.87]
[1646049504078,23.2276,90.907,90.82,15.87]
[1646049504279,23.2276,90.907,90.821,53.93322655]
[1646049504478,23.2276,90.907,90.821,56.68001576]
[1646049504678,23.2276,90.907,90.822,28.18543951]
[1646049504879,23.2276,90.907,90.823,6.0]
[1646049505178,23.2276,90.907,90.824,4.402]
[1646049505377,23.2276,90.907,90.824,2.74678921]
[1646049505577,23.2276,90.907,90.822,28.18543951]
[1646049505578,23.2276,90.907,90.825,2.74678921]
[1646049505780,23.2276,90.907,90.84,15.87]
[1646049505978,23.2276,90.907,90.841,45.36741095]
[1646049506178,1.4146169,90.906,90.841,45.36741095]
[1646049506379,8.9946169,90.906,90.841,45.36741095]
[1646049507079,9.43614999,90.906,90.841,45.36741095]
[1646049508981,7.58,90.906,90.841,61.82261095]
[1646049509181,23.2276,90.907,90.841,61.82261095]
[1646049509383,23.2276,90.907,90.842,4.401]
[1646049511883,23.2276,90.907,90.841,66.22361095]
[1646049512985,23.2276,90.907,90.841,61.82261095]
[1646049513787,23.2276,90.907,90.842,4.401]
[1646049514187,23.2276,90.907,90.843,2.74678921]
[1646049514388,23.2276,90.907,90.844,4.401]
[1646049514789,23.2276,90.907,90.844,7.14778921]
[1646049515190,23.8154,90.919,90.844,2.74678921]
[1646049515592,23.8154,90.919,90.845,4.401]
[1646049515989,23.8154,90.919,90.846,2.74678921]
[1646049516191,23.8154,90.919,90.86,15.87]
[1646049516392,23.8154,90.919,90.861,52.79615846]
[1646049516694,23.8154,90.919,90.862,4.4]
[1646049517092,23.8154,90.919,90.861,59.94294767]
[1646049518295,23.8154,90.919,90.861,55.54294767]
[1646049519694,23.8154,90.919,90.861,59.94294767]
[1646049520295,23.8154,90.919,90.861,55.54294767]
[1646049520697,23.8154,90.919,90.861,52.79615846]
[1646049521304,25.56602766,90.919,90.861,52.79615846]
[1646049521499,24.968,90.918,90.861,52.79615846]
[1646049523703,24.968,90.918,90.842,4.4]
[1646049523900,1.78379102,90.917,90.833,30.47600329]
[1646049524500,1.78379102,90.917,90.826,7.14778921]
[1646049524501,68.23379102,90.917,90.826,7.14778921]
[1646049524702,1.65722845,90.916,90.842,47.79213892]
[1646049524901,4.401,90.915,90.842,47.79213892]
[1646049525102,110.7,90.914,90.842,47.79213892]
[1646049525301,110.7,90.912,90.842,47.79213892]
[1646049525502,110.7,90.91,90.842,47.79213892]
[1646049525701,5.98566474,90.909,90.842,47.79213892]
[1646049525902,1.40997244,90.907,90.842,47.79213892]
[1646049526103,1.58386909,90.904,90.842,47.79213892]
[1646049529720,24.4295,90.906,90.842,50.53892813]
[1646049529920,24.4295,90.906,90.843,34.87700329]
[1646049530320,24.4295,90.906,90.844,30.47600329]
[1646049530520,24.4295,90.906,90.845,4.401]
[1646049530922,24.4295,90.906,90.846,30.47600329]
[1646049531120,24.4295,90.906,90.85,15.87]
[1646049533722,1.43161172,90.935,90.851,30.47600329]
[1646049533923,24.5582,90.934,90.852,4.401]
[1646049534121,24.5582,90.934,90.852,7.14778921]
[1646049534321,24.5582,90.934,90.853,30.47600329]
[1646049534533,24.5582,90.934,90.854,10.401]
[1646049534731,24.5582,90.934,90.854,13.14778921]
[1646049534933,24.5582,90.934,90.854,7.14778921]
[1646049535130,24.5582,90.934,90.855,2.74678921]
[1646049535334,24.5582,90.934,90.87,15.87]
[1646049535532,24.5582,90.934,90.871,55.53245889]
[1646049536734,1.73685916,90.918,90.871,55.53245889]
[1646049536934,24.5979,90.917,90.871,55.53245889]
[1646049537735,1.73685916,90.918,90.871,55.53245889]
[1646049537935,1.62639482,90.941,90.872,2.74678921]
[1646049538139,177.15,90.946,90.872,2.74678921]
[1646049538337,177.15,90.946,90.871,55.53245889]
[1646049538338,1.6334739,90.945,90.871,55.53245889]
[1646049539035,1.82210381,90.944,90.871,55.53245889]
[1646049552950,4.4,90.943,90.871,55.53245889]
[1646049553151,110.7,90.943,90.871,55.53245889]
[1646049553351,1.87525457,90.942,90.871,55.53245889]
[1646049553552,68.32525457,90.942,90.856,4.4]
[1646049553751,66.45,90.926,90.856,4.4]
[1646049553951,134.7625,90.925,90.856,4.4]
[1646049554151,1.81872865,90.924,90.856,4.4]
[1646049554652,1.81872865,90.924,90.857,43.63094811]
[1646049555453,66.45,90.918,90.857,43.63094811]
[1646049555755,110.7,90.905,90.857,43.63094811]
[1646049555953,110.7,90.903,90.857,43.63094811]
[1646049556252,1.74055287,90.902,90.857,43.63094811]
[1646049557861,1.74055287,90.902,90.856,4.4]
[1646049558558,1.35607805,90.894,90.819,2.74678921]
[1646049558857,110.7,90.892,90.817,46.67406791]
[1646049559057,1.68732966,90.891,90.817,46.67406791]
[1646049560656,1.68732966,90.891,90.817,3.11236791]
[1646049560859,1.68732966,90.891,90.818,15.42207816]
[1646049562059,1.68732966,90.891,90.819,2.74678921]
[1646049562358,1.68732966,90.891,90.82,15.42207816]
[1646049563859,1.68732966,90.891,90.821,2.74678921]
[1646049564061,23.8198,90.893,90.821,57.950232]
[1646049564260,1.87154767,90.925,90.83,15.87]
[1646049564459,23.9078,90.925,90.831,47.93761234]
[1646049564663,23.9078,90.925,90.831,91.41604712]
[1646049564860,23.9078,90.925,90.832,21.42207816]
[1646049565062,23.9078,90.925,90.833,24.1603]
[1646049565263,23.9078,90.925,90.834,6.0]
[1646049565461,23.9078,90.925,90.834,21.42207816]
[1646049565661,23.9078,90.925,90.835,2.74678921]
[1646049565863,23.9078,90.925,90.836,6.0]
[1646049566062,23.9078,90.925,90.84,15.87]
[1646049566664,23.9078,90.925,90.841,2.74678921]
[1646049569692,23.9078,90.925,90.842,110.7]
[1646049569894,23.9078,90.925,90.845,45.21981232]
[1646049570093,23.9078,90.925,90.846,6.0]
[1646049570292,1.51399248,90.949,90.86,15.87]
[1646049570493,1.51399248,90.949,90.862,53.29101313]
[1646049570691,1.51399248,90.949,90.863,6.0]
[1646049570891,1.51399248,90.949,90.863,25.44723529]
[1646049571091,1.51399248,90.949,90.863,2.74678921]
[1646049571293,1.51399248,90.949,90.864,19.44723529]
[1646049571794,110.7,90.945,90.865,2.74678921]
[1646049571992,1.86328606,90.944,90.865,2.74678921]
[1646049578097,1.69163091,90.95,90.866,16.70044608]
[1646049578294,1.69163091,90.95,90.87,15.87]
[1646049578899,1.69163091,90.95,90.871,2.74678921]
[1646049584201,112.39163091,90.95,90.871,2.74678921]
[1646049584399,23.2317,90.951,90.871,2.74678921]
[1646049585100,110.7,90.95,90.871,2.74678921]
[1646049585801,24.75602545,90.951,90.871,2.74678921]
[1646049586102,1.55961173,90.95,90.871,2.74678921]
[1646049587202,112.25961173,90.95,90.871,2.74678921]
[1646049588002,1.55961173,90.95,90.871,2.74678921]
[1646049588605,23.2317,90.951,90.871,2.74678921]
[1646049589003,112.42251337,90.95,90.871,2.74678921]
[1646049589203,1.81726917,90.949,90.871,2.74678921]
[1646049591605,23.2317,90.951,90.871,2.74678921]
[1646049591805,1.43846293,90.95,90.871,2.74678921]
[1646049593007,112.13846293,90.95,90.871,2.74678921]
[1646049593207,1.42671133,90.949,90.87,15.87]
[1646049593607,177.15,90.946,90.864,16.8423]
[1646049593810,110.7,90.944,90.864,16.8423]
[1646049594011,1.6980962,90.943,90.864,16.8423]
[1646049594207,4.4,90.942,90.864,16.8423]
[1646049595509,110.7,90.939,90.851,2.74678921]
[1646049595708,110.7,90.925,90.842,24.2637]
[1646049596007,1.74359306,90.922,90.842,24.2637]
[1646049596409,110.7,90.919,90.835,2.74678921]
[1646049596607,110.7,90.913,90.829,16.8276]
[1646049596810,110.7,90.905,90.81,11.49866576]
[1646049597112,1.54267414,90.902,90.811,58.14339818]
[1646049597308,1.52060193,90.899,90.811,58.14339818]
[1646049598315,177.15,90.896,90.812,24.10863796]
[1646049598510,177.15,90.896,90.811,58.14339818]
[1646049598710,1.63677853,90.895,90.811,58.14339818]